fUST/lending_fUST_20251004
["ID","MTS","AMOUNT","RATE_DAILY","PERIOD"]
[389005469,1759560647959,-232.160783,0.00021917,2]
[389005471,1759560647971,-151.0,0.00021917,2]
[389005473,1759560647983,-151.0,0.00021917,2]
[389005475,1759560647993,-500.0,0.00021917,2]
[389005477,1759560648002,-151.0,0.00021917,2]
[389005479,1759560648012,-151.0,0.00021917,2]
[389005481,1759560648023,-151.0,0.00021917,2]
[389005483,1759560648034,-500.0,0.00021917,2]
[389005485,1759560648046,-151.0,0.00021917,2]
[389005487,1759560648055,-500.0,0.00021917,2]
[389005489,1759560648066,-151.0,0.00021917,2]
[389005491,1759560648075,-500.0,0.00021917,2]
[389005493,1759560648085,-151.0,0.00021917,2]
[389005495,1759560648094,-151.0,0.00021917,2]
[389005497,1759560648104,-151.0,0.00021917,2]
[389005499,1759560648114,-151.0,0.00021917,2]
[389005501,1759560648123,-151.0,0.00021917,2]
[389005503,1759560648134,-500.0,0.00021917,2]
[389005505,1759560648144,-500.0,0.00021917,2]
[389005507,1759560648153,-6388.98,0.00021917,2]
[389005510,1759560648163,-500.0,0.00021917,2]
[389005512,1759560648173,-500.0,0.00021917,2]
[389005514,1759560648184,-500.0,0.00021917,2]
[389005516,1759560648194,-500.0,0.00021917,2]
[389005518,1759560648203,-500.0,0.00021917,2]
[389005520,1759560648213,-500.0,0.00021917,2]
[389005522,1759560648223,-828.82,0.00021917,2]
[389005524,1759560648233,-500.0,0.00021917,2]
[389005526,1759560648242,-522.14,0.00021917,2]
[389005528,1759560648252,-500.0,0.00021917,2]
[389005530,1759560648261,-991.21,0.00021917,2]
[389005532,1759560648271,-1041.86,0.00021917,2]
[389005534,1759560648281,-1986.41,0.00021917,2]
[389005536,1759560648291,-500.0,0.00021917,2]
[389005539,1759560648301,-500.0,0.00021917,2]
[389005541,1759560648311,-500.0,0.00021917,2]
[389005543,1759560648320,-500.0,0.00021917,2]
[389005545,1759560648330,-1156.15,0.00021917,2]
[389005547,1759560648339,-674.43,0.00021917,2]
[389005549,1759560648349,-924.04,0.00021917,2]
[389005551,1759560648359,-212.9672017,0.00021917,2]
[389005553,1759560648368,-1748.78,0.00021917,2]
[389005555,1759560648378,-581.4,0.00021917,2]
[389005557,1759560648389,-500.0,0.00021917,2]
[389005559,1759560648398,-905.44,0.00021917,2]
[389005561,1759560648408,-571.37,0.00021917,2]
[389005563,1759560648418,-653.71,0.00021917,2]
[389005565,1759560648427,-1561.34,0.00021917,2]
[389005567,1759560648437,-500.0,0.00021917,2]
[389005570,1759560648448,-500.0,0.00021917,2]
[389005572,1759560648458,-1086.89,0.00021917,2]
[389005574,1759560648467,-500.0,0.00021917,2]
[389005576,1759560648477,-500.0,0.00021917,2]
[389005578,1759560648487,-500.0,0.00021917,2]
[389005580,1759560648497,-1226.68,0.00021917,2]
[389005582,1759560648507,-500.0,0.00021917,2]
[389005584,1759560648517,-500.0,0.00021917,2]
[389005585,1759560648527,-917.82,0.00021917,2]
[389005586,1759560648537,-500.0,0.00021917,2]
[389005587,1759560648549,-1000.0,0.00021917,2]
[389005588,1759560648564,-500.0,0.00021917,2]
[389005589,1759560648577,-500.0,0.00021917,2]
[389005590,1759560648589,-500.0,0.00021917,2]
[389005591,1759560648600,-500.0,0.00021917,2]
[389005592,1759560648613,-1260.18,0.00021917,2]
[389005594,1759560648627,-1260.18,0.00021917,2]
[389005596,1759560648639,-1260.18,0.00021917,2]
[389005599,1759560648652,-1260.18,0.00021917,2]
[389005601,1759560648665,-546.86,0.00021917,2]
[389005603,1759560648677,-1260.18,0.00021917,2]
[389005606,1759560648689,-500.0,0.00021917,2]
[389005608,1759560648700,-1260.18,0.00021917,2]
[389005610,1759560648711,-1260.18,0.00021917,2]
[389005612,1759560648721,-500.0,0.00021917,2]
[389005615,1759560648734,-1260.18,0.00021917,2]
[389005617,1759560648746,-1260.18,0.00021917,2]
[389005620,1759560648759,-1026.48,0.00021917,2]
[389005622,1759560648771,-500.0,0.00021917,2]
[389005624,1759560648783,-1260.18,0.00021917,2]
[389005627,1759560648797,-1260.18,0.00021917,2]
[389005629,1759560648809,-500.0,0.00021917,2]
[389005631,1759560648821,-1260.18,0.00021917,2]
[389005634,1759560648832,-680.39,0.00021917,2]
[389005636,1759560648845,-1260.18,0.00021917,2]
[389005639,1759560648858,-500.0,0.00021917,2]
[389005641,1759560648871,-1260.18,0.00021917,2]
[389005643,1759560648883,-1260.18,0.00021917,2]
[389005646,1759560648894,-1260.18,0.00021917,2]
[389005648,1759560648906,-1260.18,0.00021917,2]
[389005650,1759560648919,-1260.18,0.00021917,2]
[389005653,1759560648932,-1260.18,0.00021917,2]
[389005655,1759560648944,-1260.18,0.00021917,2]
[389005657,1759560648955,-500.0,0.00021917,2]
[389005660,1759560648967,-1260.18,0.00021917,2]
[389005662,1759560648982,-2304.04,0.00021917,2]
[389005664,1759560648993,-1260.18,0.00021917,2]
[389005666,1759560649004,-1260.18,0.00021917,2]
[389005669,1759560649020,-1260.3482985,0.00021917,2]
[389005671,1759560649031,-500.0,0.00021917,2]
[389005673,1759560649041,-500.0,0.00021917,2]
[389005675,1759560649054,-500.0,0.00021917,2]
[389005678,1759560649065,-407.7154987,0.00021917,2]
[389005680,1759560649077,-500.0,0.00021917,2]
[389005682,1759560649089,-2915.74,0.00021917,2]
[389005684,1759560649099,-669.02,0.00021917,2]
[389005686,1759560649109,-500.0,0.00021917,2]
[389005689,1759560649120,-500.0,0.00021917,2]
[389005691,1759560649130,-500.0,0.00021917,2]
[389005693,1759560649141,-151.0,0.00021917,2]
[389005695,1759560649152,-151.0,0.00021917,2]
[389005697,1759560649163,-151.0,0.00021917,2]
[389005700,1759560649176,-151.0,0.00021917,2]
[389005702,1759560649187,-151.0,0.00021917,2]
[389005704,1759560649199,-151.0,0.00021917,2]
[389005707,1759560649210,-915.3,0.00021917,2]
[389005709,1759560649222,-151.0,0.00021917,2]
[389005711,1759560649233,-500.0,0.00021917,2]
[389005713,1759560649244,-500.0,0.00021917,2]
[389005715,1759560649255,-151.0,0.00021917,2]
[389005718,1759560649266,-1286.32,0.00021917,2]
[389005720,1759560649278,-220.592389,0.00021917,2]
[389005722,1759560649289,-500.0,0.00021917,2]
[389005724,1759560649301,-555.555692,0.00021917,2]
[389005727,1759560649312,-500.0,0.00021917,2]
[389005729,1759560649323,-555.555692,0.00021917,2]
[389005731,1759560649334,-257.66394107,0.00021917,2]
[389005733,1759560649345,-500.0,0.00021917,2]
[389005735,1759560649357,-555.555692,0.00021917,2]
[389005738,1759560649368,-555.555692,0.00021917,2]
[389005740,1759560649380,-500.0,0.00021917,2]
[389005742,1759560649390,-2035.86,0.00021917,2]
[389005744,1759560649402,-500.0,0.00021917,2]
[389005747,1759560649413,-555.555692,0.00021917,2]
[389005749,1759560649424,-151.0,0.00021917,2]
[389005751,1759560649435,-555.555692,0.00021917,2]
[389005753,1759560649446,-151.0,0.00021917,2]
[389005755,1759560649458,-555.555692,0.00021917,2]
[389005758,1759560649469,-261.70061,0.00021917,2]
[389005760,1759560649480,-500.0,0.00021917,2]
[389005762,1759560649491,-555.555692,0.00021917,2]
[389005764,1759560649502,-555.555692,0.00021917,2]
[389005767,1759560649513,-500.0,0.00021917,2]
[389005769,1759560649524,-500.0,0.00021917,2]
[389005771,1759560649534,-555.555692,0.00021917,2]
[389005773,1759560649545,-555.555692,0.00021917,2]
[389005776,1759560649558,-555.555692,0.00021917,2]
[389005778,1759560649570,-555.555692,0.00021917,2]
[389005780,1759560649581,-555.555692,0.00021917,2]
[389005782,1759560649592,-500.0,0.00021917,2]
[389005784,1759560649603,-555.555692,0.00021917,2]
[389005787,1759560649614,-555.555699,0.00021917,2]
[389005789,1759560649624,-500.0,0.00021917,2]
[389005791,1759560649635,-500.0,0.00021917,2]
[389005793,1759560649646,-413.52478563,0.00021917,2]
[389005795,1759560649657,-500.0,0.00021917,2]
[389005798,1759560649669,-151.0,0.00021917,2]
[389005800,1759560649680,-151.0,0.00021917,2]
[389005802,1759560649691,-151.0,0.00021917,2]
[389005804,1759560649702,-756.07,0.00021917,2]
[389005806,1759560649712,-151.0,0.00021917,2]
[389005808,1759560649724,-500.0,0.00021917,2]
[389005811,1759560649735,-151.0,0.00021917,2]
[389005813,1759560649745,-151.0,0.00021917,2]
[389005815,1759560649756,-151.0,0.00021917,2]
[389005817,1759560649767,-151.0,0.00021917,2]
[389005820,1759560649779,-768.72,0.00021917,2]
[389005822,1759560649789,-500.0,0.00021917,2]
[389005824,1759560649800,-151.0,0.00021917,2]
[389005826,1759560649811,-151.0,0.00021917,2]
[389005828,1759560649822,-500.0,0.00021917,2]
[389005831,1759560649833,-151.0,0.00021917,2]
[389005833,1759560649844,-169.07232,0.00021917,2]
[389005835,1759560649854,-500.0,0.00021917,2]
[389005837,1759560649864,-500.0,0.00021917,2]
[389005839,1759560649876,-500.0,0.00021917,2]
[389005842,1759560649887,-500.0,0.00021917,2]
[389005844,1759560649898,-1057.87,0.00021917,2]
[389005846,1759560649909,-500.0,0.00021917,2]
[389005848,1759560649920,-738.16,0.00021917,2]
[389005850,1759560649930,-500.0,0.00021917,2]
[389005853,1759560649942,-500.0,0.00021917,2]
[389005855,1759560649952,-151.0,0.00021917,2]
[389005857,1759560649963,-636.08,0.00021917,2]
[389005859,1759560649976,-151.0,0.00021917,2]
[389005861,1759560649988,-250.781188,0.00021917,2]
[389005863,1759560649999,-1408.29,0.00021917,2]
[389005866,1759560650010,-688.080128,0.00021917,2]
[389005868,1759560650020,-688.080128,0.00021917,2]
[389005870,1759560650031,-688.080128,0.00021917,2]
[389005872,1759560650042,-688.080128,0.00021917,2]
[389005874,1759560650056,-688.080128,0.00021917,2]
[389005877,1759560650066,-688.080128,0.00021917,2]
[389005879,1759560650076,-688.080128,0.00021917,2]
[389005881,1759560650087,-500.0,0.00021917,2]
[389005883,1759560650099,-688.080128,0.00021917,2]
[389005885,1759560650110,-688.080128,0.00021917,2]
[389005888,1759560650120,-688.080128,0.00021917,2]
[389005890,1759560650131,-688.080128,0.00021917,2]
[389005892,1759560650142,-500.0,0.00021917,2]
[389005894,1759560650152,-500.0,0.00021917,2]
[389005896,1759560650163,-688.080128,0.00021917,2]
[389005899,1759560650174,-500.0,0.00021917,2]
[389005901,1759560650184,-688.080128,0.00021917,2]
[389005903,1759560650195,-688.080128,0.00021917,2]
[389005905,1759560650205,-688.080128,0.00021917,2]
[389005907,1759560650215,-688.080134,0.00021917,2]
[389005909,1759560650226,-500.0,0.00021917,2]
[389005912,1759560650236,-1171.53,0.00021917,2]
[389005914,1759560650247,-500.0,0.00021917,2]
[389005916,1759560650258,-500.0,0.00021917,2]
[389005918,1759560650269,-232.79624565,0.00021917,2]
[389005920,1759560650279,-500.0,0.00021917,2]
[389005922,1759560650290,-500.0,0.00021917,2]
[389005924,1759560650300,-500.0,0.00021917,2]
[389005927,1759560650312,-2461.76,0.00021917,2]
[389005929,1759560650322,-500.0,0.00021917,2]
[389005931,1759560650333,-1079.04,0.00021917,2]
[389005933,1759560650344,-500.0,0.00021917,2]
[389005935,1759560650355,-500.0,0.00021917,2]
[389005937,1759560650367,-500.0,0.00021917,2]
[389005940,1759560650378,-151.0,0.00021917,2]
[389005942,1759560650390,-151.0,0.00021917,2]
[389005944,1759560650401,-746.78,0.00021917,2]
[389005946,1759560650412,-151.0,0.00021917,2]
[389005948,1759560650424,-151.0,0.00021917,2]
[389005951,1759560650434,-164.341989,0.00021917,2]
[389005953,1759560650445,-500.0,0.00021917,2]
[389005955,1759560650455,-500.0,0.00021917,2]
[389005957,1759560650466,-500.0,0.00021917,2]
[389005959,1759560650477,-500.0,0.00021917,2]
[389005961,1759560650487,-500.0,0.00021917,2]
[389005964,1759560650498,-1291.71,0.00021917,2]
[389005966,1759560650508,-828.76,0.00021917,2]
[389005968,1759560650519,-500.0,0.00021917,2]
[389005970,1759560650530,-151.0,0.00021917,2]
[389005972,1759560650541,-151.0,0.00021917,2]
[389005974,1759560650551,-151.0,0.00021917,2]
[389005977,1759560650564,-151.0,0.00021917,2]
[389005979,1759560650575,-151.0,0.00021917,2]
[389005981,1759560650585,-151.0,0.00021917,2]
[389005983,1759560650595,-151.0,0.00021917,2]
[389005985,1759560650606,-171.882503,0.00021917,2]
[389005987,1759560650616,-500.0,0.00021917,2]
[389005990,1759560650627,-500.0,0.00021917,2]
[389005992,1759560650637,-500.0,0.00021917,2]
[389005994,1759560650647,-1613.58,0.00021917,2]
[389005996,1759560650657,-500.0,0.00021917,2]
[389005998,1759560650667,-5365.04,0.00021917,2]
[389006000,1759560650679,-500.0,0.00021917,2]
[389006003,1759560650690,-151.0,0.00021917,2]
[389006005,1759560650700,-151.0,0.00021917,2]
[389006007,1759560650711,-151.0,0.00021917,2]
[389006009,1759560650721,-152.74892,0.00021917,2]
[389006011,1759560650731,-411.05318623,0.00021917,2]
[389006013,1759560650742,-151.0,0.00021917,2]
[389006016,1759560650752,-548.47,0.00021917,2]
[389006018,1759560650763,-500.0,0.00021917,2]
[389006020,1759560650773,-151.0,0.00021917,2]
[389006022,1759560650784,-151.0,0.00021917,2]
[389006054,1759560650794,-151.0,0.00021917,2]
[389006058,1759560651094,-7286.14,0.00021917,2]
[389006060,1759560651107,-500.0,0.00021917,2]
[389006062,1759560651117,-500.0,0.00021917,2]
[389006064,1759560651126,-500.0,0.00021917,2]
[389006066,1759560651136,-1253.24,0.00021917,2]
[389006068,1759560651145,-260.161778,0.00021917,2]
[389006071,1759560651154,-500.0,0.00021917,2]
[389006073,1759560651164,-500.0,0.00021917,2]
[389006075,1759560651175,-500.0,0.00021917,2]
[389006076,1759560651185,-500.0,0.00021917,2]
[389006079,1759560651194,-500.0,0.00021917,2]
[389006080,1759560651204,-501.59873188,0.00021917,2]
[389006082,1759560651214,-481.4305831,0.00021917,2]
[389006084,1759560651223,-164.983853,0.00021917,2]
[389006086,1759560651232,-500.0,0.00021917,2]
[389006088,1759560651242,-2494.76,0.00021917,2]
[389006090,1759560651251,-500.0,0.00021917,2]
[389006092,1759560651260,-500.0,0.00021917,2]
[389006094,1759560651269,-316.91375993,0.00021917,2]
[389006097,1759560651279,-500.0,0.00021917,2]
[389006099,1759560651288,-500.0,0.00021917,2]
[389006100,1759560651297,-565.62,0.00021917,2]
[389006102,1759560651307,-500.0,0.00021917,2]
[389006105,1759560651316,-976.86,0.00021917,2]
[389006107,1759560651325,-605.07,0.00021917,2]
[389006109,1759560651333,-151.0,0.00021917,2]
[389006111,1759560651343,-250.420683,0.00021917,2]
[389006113,1759560651352,-151.0,0.00021917,2]
[389006115,1759560651361,-500.0,0.00021917,2]
[389006117,1759560651371,-151.0,0.00021917,2]
[389006118,1759560651379,-500.0,0.00021917,2]
[389006120,1759560651388,-206.857254,0.00021917,2]
[389006122,1759560651398,-500.0,0.00021917,2]
[389006125,1759560651407,-151.0,0.00021917,2]
[389006127,1759560651416,-151.0,0.00021917,2]
[389006129,1759560651425,-151.0,0.00021917,2]
[389006131,1759560651435,-500.0,0.00021917,2]
[389006133,1759560651444,-500.83353063,0.00021917,2]
[389006134,1759560651453,-500.0,0.00021917,2]
[389006137,1759560651462,-151.0,0.00021917,2]
[389006139,1759560651472,-151.0,0.00021917,2]
[389006140,1759560651481,-151.0,0.00021917,2]
[389006142,1759560651491,-151.0,0.00021917,2]
[389006144,1759560651502,-151.0,0.00021917,2]
[389006146,1759560651511,-460.204294,0.00021917,2]
[389006148,1759560651520,-151.0,0.00021917,2]
[389006150,1759560651529,-151.0,0.00021917,2]
[389006152,1759560651537,-176.791143,0.00021917,2]
[389006154,1759560651547,-500.0,0.00021917,2]
[389006156,1759560651556,-500.0,0.00021917,2]
[389006158,1759560651564,-4450.87,0.00021917,2]
[389006160,1759560651573,-500.0,0.00021917,2]
[389006162,1759560651582,-151.0,0.00021917,2]
[389006164,1759560651591,-151.0,0.00021917,2]
[389006166,1759560651600,-500.0,0.00021917,2]
[389006168,1759560651609,-151.0,0.00021917,2]
[389006170,1759560651618,-382.16840639,0.00021917,2]
[389006172,1759560651628,-2698.6,0.00021917,2]
[389006175,1759560651638,-1638.57,0.00021917,2]
[389006177,1759560651647,-500.0,0.00021917,2]
[389006179,1759560651657,-500.0,0.00021917,2]
[389006181,1759560651667,-929.92,0.00021917,2]
[389006183,1759560651677,-500.0,0.00021917,2]
[389006185,1759560651687,-10499.07,0.00021917,2]
[389006187,1759560651696,-500.0,0.00021917,2]
[389006189,1759560651705,-500.0,0.00021917,2]
[389006191,1759560651715,-500.0,0.00021917,2]
[389006193,1759560651724,-500.0,0.00021917,2]
[389006195,1759560651733,-500.0,0.00021917,2]
[389006197,1759560651742,-500.0,0.00021917,2]
[389006199,1759560651751,-595.15215168,0.00021917,2]
[389006201,1759560651759,-500.0,0.00021917,2]
[389006203,1759560651769,-500.0,0.00021917,2]
[389006205,1759560651778,-1451.39,0.00021917,2]
[389006207,1759560651787,-500.0,0.00021917,2]
[389006209,1759560651796,-500.0,0.00021917,2]
[389006211,1759560651805,-1491.93,0.00021917,2]
[389006213,1759560651814,-500.0,0.00021917,2]
[389006215,1759560651824,-1445.66,0.00021917,2]
[389006217,1759560651832,-3737.77,0.00021917,2]
[389006219,1759560651842,-500.0,0.00021917,2]
[389006221,1759560651851,-500.0,0.00021917,2]
[389006223,1759560651860,-500.0,0.00021917,2]
[389006225,1759560651869,-500.0,0.00021917,2]
[389006227,1759560651878,-500.0,0.00021917,2]
[389006229,1759560651887,-500.0,0.00021917,2]
[389006231,1759560651897,-500.0,0.00021917,2]
[389006233,1759560651907,-487.37845422,0.00021917,2]
[389006235,1759560651915,-500.0,0.00021917,2]
[389006237,1759560651924,-500.0,0.00021917,2]
[389006239,1759560651935,-674.55,0.00021917,2]
[389006241,1759560651944,-500.0,0.00021917,2]
[389006243,1759560651954,-500.0,0.00021917,2]
[389006245,1759560651963,-4487.28,0.00021917,2]
[389006247,1759560651975,-500.0,0.00021917,2]
[389006249,1759560651986,-715.3,0.00021917,2]
[389006251,1759560651995,-500.0,0.00021917,2]
[389006253,1759560652004,-151.0,0.00021917,2]
[389006255,1759560652014,-151.0,0.00021917,2]
[389006257,1759560652025,-151.0,0.00021917,2]
[389006259,1759560652034,-500.0,0.00021917,2]
[389006261,1759560652044,-151.0,0.00021917,2]
[389006263,1759560652056,-151.0,0.00021917,2]
[389006265,1759560652064,-151.0,0.00021917,2]
[389006267,1759560652073,-1491.5,0.00021917,2]
[389006269,1759560652082,-151.0,0.00021917,2]
[389006271,1759560652091,-151.0,0.00021917,2]
[389006273,1759560652100,-151.0,0.00021917,2]
[389006275,1759560652109,-151.0,0.00021917,2]
[389006277,1759560652118,-189.055118,0.00021917,2]
[389006279,1759560652127,-612.81,0.00021917,2]
[389006281,1759560652136,-151.0,0.00021917,2]
[389006283,1759560652145,-500.0,0.00021917,2]
[389006285,1759560652154,-1339.05,0.00021917,2]
[389006287,1759560652163,-500.0,0.00021917,2]
[389006289,1759560652172,-500.0,0.00021917,2]
[389006291,1759560652181,-987.8,0.00021917,2]
[389006293,1759560652190,-519.61,0.00021917,2]
[389006295,1759560652199,-1583.31,0.00021917,2]
[389006297,1759560652208,-500.0,0.00021917,2]
[389006298,1759560652217,-2965.9,0.00021917,2]
[389006300,1759560652226,-1142.03,0.00021917,2]
[389006303,1759560652236,-615.21,0.00021917,2]
[389006304,1759560652245,-495.78442434,0.00021917,2]
[389006306,1759560652254,-500.0,0.00021917,2]
[389006309,1759560652264,-500.0,0.00021917,2]
[389006311,1759560652273,-500.0,0.00021917,2]
[389006312,1759560652282,-500.0,0.00021917,2]
[389006314,1759560652291,-500.0,0.00021917,2]
[389006316,1759560652300,-500.0,0.00021917,2]
[389006318,1759560652310,-1043.17,0.00021917,2]
[389006320,1759560652319,-785.24,0.00021917,2]
[389006322,1759560652328,-500.0,0.00021917,2]
[389006324,1759560652337,-1390.35,0.00021917,2]
[389006326,1759560652348,-500.0,0.00021917,2]
[389006328,1759560652357,-500.0,0.00021917,2]
[389006330,1759560652366,-500.0,0.00021917,2]
[389006333,1759560652375,-1271.14,0.00021917,2]
[389006335,1759560652384,-770.11,0.00021917,2]
[389006336,1759560652393,-500.0,0.00021917,2]
[389006339,1759560652402,-1991.57,0.00021917,2]
[389006340,1759560652411,-357.11002894,0.00021917,2]
[389006343,1759560652420,-1025.62,0.00021917,2]
[389006344,1759560652429,-196.01399942,0.00021917,2]
[389006347,1759560652439,-500.0,0.00021917,2]
[389006349,1759560652449,-3622.43,0.00021917,2]
[389006351,1759560652458,-2023.13,0.00021917,2]
[389006352,1759560652467,-500.0,0.00021917,2]
[389006355,1759560652476,-452.22086464,0.00021917,2]
[389006357,1759560652485,-500.0,0.00021917,2]
[389006359,1759560652494,-500.0,0.00021917,2]
[389006361,1759560652504,-500.0,0.00021917,2]
[389006363,1759560652516,-500.0,0.00021917,2]
[389006365,1759560652527,-500.0,0.00021917,2]
[389006367,1759560652536,-6461.22,0.00021917,2]
[389006369,1759560652546,-500.0,0.00021917,2]
[389006370,1759560652556,-500.0,0.00021917,2]
[389006371,1759560652565,-402.41520987,0.00021917,2]
[389006372,1759560652575,-500.0,0.00021917,2]
[389006373,1759560652584,-500.0,0.00021917,2]
[389006374,1759560652593,-500.0,0.00021917,2]
[389006375,1759560652602,-500.0,0.00021917,2]
[389006376,1759560652611,-500.0,0.00021917,2]
[389006377,1759560652620,-500.0,0.00021917,2]
[389006378,1759560652630,-614.2833166,0.00021917,2]
[389006379,1759560652639,-500.0,0.00021917,2]
[389006380,1759560652648,-500.0,0.00021917,2]
[389006381,1759560652658,-1876.49,0.00021917,2]
[389006383,1759560652667,-500.0,0.00021917,2]
[389006384,1759560652676,-505.62,0.00021917,2]
[389006386,1759560652685,-728.97,0.00021917,2]
[389006388,1759560652695,-571.79046969,0.00021917,2]
[389006390,1759560652704,-151.0,0.00021917,2]
[389006392,1759560652713,-1834.46,0.00021917,2]
[389006394,1759560652723,-500.0,0.00021917,2]
[389006396,1759560652732,-285.157433,0.00021917,2]
[389006398,1759560652740,-500.0,0.00021917,2]
[389006400,1759560652750,-3348.94,0.00021917,2]
[389006402,1759560652759,-500.0,0.00021917,2]
[389006404,1759560652769,-378.50053142,0.00021917,2]
[389006405,1759560652778,-500.0,0.00021917,2]
[389006407,1759560652788,-500.0,0.00021917,2]
[389006409,1759560652797,-761.41,0.00021917,2]
[389006411,1759560652807,-151.0,0.00021917,2]
[389006413,1759560652816,-151.0,0.00021917,2]
[389006415,1759560652825,-151.0,0.00021917,2]
[389006417,1759560652834,-500.0,0.00021917,2]
[389006419,1759560652844,-151.0,0.00021917,2]
[389006422,1759560652854,-151.0,0.00021917,2]
[389006423,1759560652863,-500.0,0.00021917,2]
[389006425,1759560652872,-500.0,0.00021917,2]
[389006427,1759560652882,-151.0,0.00021917,2]
[389006429,1759560652891,-440.49986315,0.00021917,2]
[389006431,1759560652900,-500.0,0.00021917,2]
[389006433,1759560652910,-5019.66,0.00021917,2]
[389006435,1759560652919,-500.0,0.00021917,2]
[389006437,1759560652929,-151.0,0.00021918,2]
[389006439,1759560652938,-151.0,0.00021918,2]
[389006442,1759560652947,-151.0,0.00021918,2]
[389006443,1759560652957,-151.0,0.00021918,2]
[389006446,1759560652968,-151.0,0.00021918,2]
[389006447,1759560652985,-151.0,0.00021918,2]
[389006450,1759560653000,-151.0,0.00021918,2]
[389006451,1759560653010,-151.0,0.00021918,2]
[389006454,1759560653020,-225.3223,0.00021918,2]
[389006455,1759560653029,-155.1904181,0.00021918,2]
[389006458,1759560653039,-500.0,0.00021973,2]
[389006459,1759560653048,-500.0,0.00021973,2]
[389006461,1759560653057,-500.0,0.00021973,2]
[389006463,1759560653067,-500.0,0.00021973,2]
[389006466,1759560653077,-500.0,0.00021973,2]
[389006467,1759560653087,-500.0,0.00021973,2]
[389006470,1759560653096,-500.0,0.00021973,2]
[389006471,1759560653106,-500.0,0.00021973,2]
[389006473,1759560653115,-500.0,0.00021973,2]
[389006476,1759560653125,-150.49359446,0.00021973,2]
[389006477,1759560653135,-501.49259705,0.00021973,2]
[389006480,1759560653145,-500.0,0.00021973,2]
[389006482,1759560653154,-500.0,0.00021973,2]
[389006484,1759560653164,-518.6804442,0.00021973,2]
[389006486,1759560653173,-500.0,0.00021973,2]
[389006488,1759560653182,-500.36229035,0.00021973,2]
[389006490,1759560653192,-500.0,0.00021973,2]
[389006491,1759560653202,-500.0,0.00021973,2]
[389006493,1759560653211,-159.13756808,0.00021973,2]
[389006495,1759560653221,-502.11309863,0.00021973,2]
[389006497,1759560653230,-500.22333547,0.00021973,2]
[389006499,1759560653240,-500.0,0.00021973,2]
[389006501,1759560653250,-500.0,0.00021973,2]
[389006503,1759560653261,-500.0,0.00021973,2]
[389006505,1759560653271,-500.0,0.00021973,2]
[389006507,1759560653280,-500.0,0.00021973,2]
[389006509,1759560653290,-500.0,0.00021973,2]
[389006511,1759560653299,-500.54942736,0.00021973,2]
[389006513,1759560653309,-197.4791147,0.00021973,2]
[389006515,1759560653319,-200.53054593,0.00021973,2]
[389006517,1759560653329,-487.56700715,0.00021973,2]
[389006520,1759560653340,-500.0,0.00021973,2]
[389006522,1759560653350,-291.18932426,0.00021973,2]
[389006524,1759560653359,-502.9807355,0.00021973,2]